[Event "Titled Tuesday Blitz April 05 Late 2022"]
[White "Hambleton, Aman"]
[Black "Reprintsev, Alexander"]
[WhiteFideId "2606577"]
[BlackFideId "14100541"]
[WhiteElo "2552"]
[BlackElo "2108"]
[Result "1-0"]
[Round "09"]
[TimeControl "180+1"]
[Date "2022.04.05"]
[WhiteClock "0:00:05"]
[BlackClock "0:00:05"]

1. d4 {[%clk 0:03:00]}  d5 {[%clk 0:02:46]} 2. Bf4 {[%clk 0:02:58]}  Nf6 {[%clk 0:02:12]} 3. e3 {[%clk 0:02:59]}  c5 {[%clk 0:02:12]} 4. c3 {[%clk 0:02:59]}  Qb6 {[%clk 0:02:12]} 5. Qb3 {[%clk 0:02:59]}  c4 {[%clk 0:02:12]} 6. Qc2 {[%clk 0:02:59]}  g6 {[%clk 0:02:12]} 7. b3 {[%clk 0:02:52]}  Bf5 {[%clk 0:02:11]} 8. Qb2 {[%clk 0:02:53]}  Nc6 {[%clk 0:02:10]} 9. Nd2 {[%clk 0:02:53]}  Nh5 {[%clk 0:02:04]} 10. Bg5 {[%clk 0:02:28]}  h6 {[%clk 0:02:01]} 11. Bh4 {[%clk 0:02:28]}  g5 {[%clk 0:02:01]} 12. Be2 {[%clk 0:02:10]}  gxh4 {[%clk 0:02:01]} 13. Bxh5 {[%clk 0:02:10]}  Bg7 {[%clk 0:02:02]} 14. Ngf3 {[%clk 0:02:07]}  h3 {[%clk 0:02:00]} 15. g3 {[%clk 0:02:07]}  Bd3 {[%clk 0:01:42]} 16. Bg4 {[%clk 0:01:35]}  e5 {[%clk 0:01:42]} 17. dxe5 {[%clk 0:01:35]}  Nxe5 {[%clk 0:01:42]} 18. Nxe5 {[%clk 0:01:36]}  Bxe5 {[%clk 0:01:42]} 19. Nf3 {[%clk 0:01:35]}  Bf6 {[%clk 0:01:42]} 20. Bxh3 {[%clk 0:01:32]}  O-O {[%clk 0:01:42]} 21. Bf1 {[%clk 0:01:31]}  Bf5 {[%clk 0:01:28]} 22. Be2 {[%clk 0:00:30]}  Bh3 {[%clk 0:01:27]} 23. Rg1 {[%clk 0:00:31]}  Rac8 {[%clk 0:01:27]} 24. b4 {[%clk 0:00:26]}  Bf5 {[%clk 0:01:25]} 25. g4 {[%clk 0:00:18]}  Bg6 {[%clk 0:01:24]} 26. h4 {[%clk 0:00:12]}  Bg7 {[%clk 0:01:23]} 27. a3 {[%clk 0:00:08]}  Rfe8 {[%clk 0:01:15]} 28. h5 {[%clk 0:00:06]}  Bd3 {[%clk 0:01:11]} 29. Rc1 {[%clk 0:00:02]}  Rxe3 {[%clk 0:01:08]} 30. fxe3 {[%clk 0:00:02]}  Qxe3 {[%clk 0:01:09]} 31. Qd2 {[%clk 0:00:01]}  Qe8 {[%clk 0:00:56]} 32. Kf1 {[%clk 0:00:02]}  Be4 {[%clk 0:00:56]} 33. Re1 {[%clk 0:00:02]}  Qa4 {[%clk 0:00:52]} 34. Bd1 {[%clk 0:00:02]}  Qxa3 {[%clk 0:00:51]} 35. Nd4 {[%clk 0:00:03]}  Re8 {[%clk 0:00:47]} 36. Rg3 {[%clk 0:00:03]}  a5 {[%clk 0:00:45]} 37. bxa5 {[%clk 0:00:03]}  Qxa5 {[%clk 0:00:45]} 38. Kg1 {[%clk 0:00:02]}  Qc7 {[%clk 0:00:45]} 39. Qf2 {[%clk 0:00:01]}  Be5 {[%clk 0:00:44]} 40. Rge3 {[%clk 0:00:01]}  Bf4 {[%clk 0:00:42]} 41. Bf3 {[%clk 0:00:01]}  Bg3 {[%clk 0:00:40]} 42. Qg2 {[%clk 0:00:01]}  Bxe1 {[%clk 0:00:38]} 43. Rxe1 {[%clk 0:00:02]}  Qf4 {[%clk 0:00:33]} 44. Bxe4 {[%clk 0:00:03]}  Rxe4 {[%clk 0:00:29]} 45. Rxe4 {[%clk 0:00:02]}  dxe4 {[%clk 0:00:29]} 46. Qe2 {[%clk 0:00:03]}  e3 {[%clk 0:00:26]} 47. Kg2 {[%clk 0:00:02]}  Qe4+ {[%clk 0:00:21]} 48. Qf3 {[%clk 0:00:02]}  Qd3 {[%clk 0:00:21]} 49. Ne2 {[%clk 0:00:03]}  b5 {[%clk 0:00:20]} 50. Qa8+ {[%clk 0:00:03]}  Kg7 {[%clk 0:00:20]} 51. Kf3 {[%clk 0:00:03]}  b4 {[%clk 0:00:19]} 52. cxb4 {[%clk 0:00:04]}  c3 {[%clk 0:00:19]} 53. Qc6 {[%clk 0:00:04]}  c2 {[%clk 0:00:19]} 54. b5 {[%clk 0:00:04]}  Qd1 {[%clk 0:00:18]} 55. Kxe3 {[%clk 0:00:04]}  Qb1 {[%clk 0:00:16]} 56. Qc3+ {[%clk 0:00:04]}  f6 {[%clk 0:00:15]} 57. Qc7+ {[%clk 0:00:03]}  Kg8 {[%clk 0:00:15]} 58. b6 {[%clk 0:00:04]}  Qb3+ {[%clk 0:00:15]} 59. Kf2 {[%clk 0:00:04]}  Qd5 {[%clk 0:00:11]} 60. b7 {[%clk 0:00:04]}  c1=Q {[%clk 0:00:05]} 61. b8=Q+ {[%clk 0:00:05]} 1-0


[Site "https://www.chess.com"]

[Event "Titled Tuesday Blitz April 05 Late 2022"]
[White "Harish, Neeraj"]
[Black "Hernandez Bermudez, Ulises Eduardo"]
[WhiteFideId "30958130"]
[BlackFideId "3902510"]
[WhiteElo "1574"]
[BlackElo "2056"]
[Result "0-1"]
[Round "09"]
[TimeControl "180+1"]
[Date "2022.04.06"]
[WhiteClock "0:00:05"]
[BlackClock "0:01:08"]

1. c4 {[%clk 0:03:00]}  Nf6 {[%clk 0:02:59]} 2. Nf3 {[%clk 0:02:57]}  c5 {[%clk 0:02:57]} 3. Nc3 {[%clk 0:02:54]}  e6 {[%clk 0:02:55]} 4. e3 {[%clk 0:02:51]}  d5 {[%clk 0:02:54]} 5. d4 {[%clk 0:02:46]}  Nc6 {[%clk 0:02:53]} 6. cxd5 {[%clk 0:02:44]}  exd5 {[%clk 0:02:52]} 7. Bb5 {[%clk 0:02:27]}  cxd4 {[%clk 0:02:43]} 8. Nxd4 {[%clk 0:02:25]}  Bd7 {[%clk 0:02:43]} 9. O-O {[%clk 0:02:19]}  Bd6 {[%clk 0:02:41]} 10. Nf3 {[%clk 0:01:19]}  Bf5 {[%clk 0:02:07]} 11. Qa4 {[%clk 0:00:54]}  Qc7 {[%clk 0:01:59]} 12. Rd1 {[%clk 0:00:33]}  Be6 {[%clk 0:01:46]} 13. h3 {[%clk 0:00:14]}  O-O {[%clk 0:01:44]} 14. Bxc6 {[%clk 0:00:12]}  bxc6 {[%clk 0:01:43]} 15. Qh4 {[%clk 0:00:11]}  h6 {[%clk 0:01:41]} 16. e4 {[%clk 0:00:10]}  Nxe4 {[%clk 0:01:31]} 17. Nxe4 {[%clk 0:00:11]}  dxe4 {[%clk 0:01:29]} 18. Qxe4 {[%clk 0:00:12]}  Bd5 {[%clk 0:01:28]} 19. Qe2 {[%clk 0:00:11]}  Rae8 {[%clk 0:01:27]} 20. Be3 {[%clk 0:00:11]}  Bf4 {[%clk 0:01:24]} 21. Rac1 {[%clk 0:00:10]}  Bxe3 {[%clk 0:01:24]} 22. fxe3 {[%clk 0:00:11]}  Qg3 {[%clk 0:01:23]} 23. Qf2 {[%clk 0:00:09]}  Qg6 {[%clk 0:01:20]} 24. Rc3 {[%clk 0:00:07]}  Re6 {[%clk 0:01:17]} 25. Nd4 {[%clk 0:00:06]}  Rf6 {[%clk 0:01:16]} 26. Qc2 {[%clk 0:00:06]}  Be4 {[%clk 0:01:15]} 27. Qe2 {[%clk 0:00:06]}  Rd8 {[%clk 0:01:11]} 28. Nf3 {[%clk 0:00:05]}  Rxd1+ {[%clk 0:01:10]} 29. Qxd1 {[%clk 0:00:05]}  Bxf3 {[%clk 0:01:08]} 0-1


[Site "https://www.chess.com"]

[Event "Titled Tuesday Blitz April 05 Late 2022"]
[White "He, Anthony"]
[Black "Naroditsky, Daniel"]
[WhiteFideId "2088215"]
[BlackFideId "2026961"]
[WhiteElo "2415"]
[BlackElo "2608"]
[Result "1/2-1/2"]
[Round "09"]
[TimeControl "180+1"]
[Date "2022.04.05"]
[WhiteClock "0:00:01"]
[BlackClock "0:00:02"]

1. e4 {[%clk 0:03:00]}  c5 {[%clk 0:02:55]} 2. Nf3 {[%clk 0:02:58]}  d6 {[%clk 0:02:55]} 3. Bb5+ {[%clk 0:02:58]}  Nc6 {[%clk 0:02:48]} 4. O-O {[%clk 0:02:57]}  Bd7 {[%clk 0:02:46]} 5. Re1 {[%clk 0:02:55]}  Nf6 {[%clk 0:02:40]} 6. Nc3 {[%clk 0:02:52]}  e5 {[%clk 0:02:34]} 7. d3 {[%clk 0:02:50]}  h6 {[%clk 0:02:28]} 8. a4 {[%clk 0:02:49]}  Be7 {[%clk 0:02:28]} 9. Nd2 {[%clk 0:02:46]}  O-O {[%clk 0:02:19]} 10. Nf1 {[%clk 0:02:44]}  a6 {[%clk 0:02:13]} 11. Bc4 {[%clk 0:02:43]}  Bg4 {[%clk 0:02:08]} 12. Qd2 {[%clk 0:02:30]}  Nh5 {[%clk 0:01:53]} 13. f3 {[%clk 0:02:11]}  Be6 {[%clk 0:01:50]} 14. Nd5 {[%clk 0:02:06]}  Bg5 {[%clk 0:01:33]} 15. Qf2 {[%clk 0:02:01]}  Bxd5 {[%clk 0:01:28]} 16. Bxd5 {[%clk 0:01:59]}  Bxc1 {[%clk 0:01:26]} 17. Raxc1 {[%clk 0:01:57]}  Nf4 {[%clk 0:01:26]} 18. Bc4 {[%clk 0:01:49]}  Qg5 {[%clk 0:01:21]} 19. Kh1 {[%clk 0:01:36]}  Kh8 {[%clk 0:01:20]} 20. Ne3 {[%clk 0:01:34]}  Nd4 {[%clk 0:01:10]} 21. c3 {[%clk 0:01:22]}  b5 {[%clk 0:01:07]} 22. g3 {[%clk 0:00:38]}  Nfe2 {[%clk 0:00:57]} 23. Rcd1 {[%clk 0:00:25]}  bxc4 {[%clk 0:00:53]} 24. dxc4 {[%clk 0:00:25]}  Rab8 {[%clk 0:00:30]} 25. Rxe2 {[%clk 0:00:25]}  Nxe2 {[%clk 0:00:29]} 26. Qxe2 {[%clk 0:00:26]}  Rxb2 {[%clk 0:00:18]} 27. Qxb2 {[%clk 0:00:24]}  Qxe3 {[%clk 0:00:19]} 28. Kg2 {[%clk 0:00:24]}  f5 {[%clk 0:00:15]} 29. Qd2 {[%clk 0:00:22]}  Qxd2+ {[%clk 0:00:06]} 30. Rxd2 {[%clk 0:00:23]}  fxe4 {[%clk 0:00:07]} 31. fxe4 {[%clk 0:00:24]}  Rb8 {[%clk 0:00:02]} 32. Rxd6 {[%clk 0:00:23]}  Rb2+ {[%clk 0:00:03]} 33. Kh3 {[%clk 0:00:23]}  Rb3 {[%clk 0:00:03]} 34. Rd5 {[%clk 0:00:23]}  Rxc3 {[%clk 0:00:03]} 35. Rxc5 {[%clk 0:00:24]}  Kg8 {[%clk 0:00:02]} 36. a5 {[%clk 0:00:23]}  Kf7 {[%clk 0:00:02]} 37. Rc6 {[%clk 0:00:24]}  h5 {[%clk 0:00:02]} 38. Kh4 {[%clk 0:00:18]}  Re3 {[%clk 0:00:03]} 39. Kxh5 {[%clk 0:00:16]}  Rxe4 {[%clk 0:00:03]} 40. Kg5 {[%clk 0:00:17]}  Re2 {[%clk 0:00:03]} 41. h4 {[%clk 0:00:16]}  Rc2 {[%clk 0:00:02]} 42. Kf5 {[%clk 0:00:16]}  Re2 {[%clk 0:00:02]} 43. Rc7+ {[%clk 0:00:16]}  Kf8 {[%clk 0:00:02]} 44. Ke6 {[%clk 0:00:15]}  Kg8 {[%clk 0:00:02]} 45. c5 {[%clk 0:00:16]}  e4 {[%clk 0:00:02]} 46. Kf5 {[%clk 0:00:14]}  e3 {[%clk 0:00:02]} 47. Kf4 {[%clk 0:00:14]}  Re1 {[%clk 0:00:03]} 48. Kf3 {[%clk 0:00:14]}  e2 {[%clk 0:00:03]} 49. Kf2 {[%clk 0:00:14]}  Ra1 {[%clk 0:00:03]} 50. Kxe2 {[%clk 0:00:15]}  Rxa5 {[%clk 0:00:04]} 51. Kf3 {[%clk 0:00:14]}  Kf8 {[%clk 0:00:04]} 52. Kf4 {[%clk 0:00:14]}  Ra1 {[%clk 0:00:04]} 53. Kg5 {[%clk 0:00:14]}  a5 {[%clk 0:00:03]} 54. Ra7 {[%clk 0:00:12]}  a4 {[%clk 0:00:04]} 55. c6 {[%clk 0:00:12]}  Rc1 {[%clk 0:00:05]} 56. c7 {[%clk 0:00:13]}  Ke8 {[%clk 0:00:04]} 57. Kg6 {[%clk 0:00:10]}  Kd7 {[%clk 0:00:04]} 58. Rxa4 {[%clk 0:00:07]}  Rxc7 {[%clk 0:00:01]} 59. Kxg7 {[%clk 0:00:07]}  Ke6+ {[%clk 0:00:02]} 60. Kg6 {[%clk 0:00:08]}  Rc8 {[%clk 0:00:03]} 61. Kg5 {[%clk 0:00:07]}  Rg8+ {[%clk 0:00:03]} 62. Kf4 {[%clk 0:00:08]}  Kf6 {[%clk 0:00:03]} 63. Ra6+ {[%clk 0:00:08]}  Kg7 {[%clk 0:00:04]} 64. g4 {[%clk 0:00:08]}  Rb8 {[%clk 0:00:04]} 65. h5 {[%clk 0:00:08]}  Kh8 {[%clk 0:00:05]} 66. Kg5 {[%clk 0:00:08]}  Kg7 {[%clk 0:00:05]} 67. Kh4 {[%clk 0:00:08]}  Kh8 {[%clk 0:00:05]} 68. Rg6 {[%clk 0:00:07]}  Kh7 {[%clk 0:00:05]} 69. Rf6 {[%clk 0:00:08]}  Rb7 {[%clk 0:00:06]} 70. Ra6 {[%clk 0:00:08]}  Rc7 {[%clk 0:00:06]} 71. Ra4 {[%clk 0:00:09]}  Rb7 {[%clk 0:00:06]} 72. Rf4 {[%clk 0:00:09]}  Rc7 {[%clk 0:00:07]} 73. g5 {[%clk 0:00:10]}  Kg7 {[%clk 0:00:06]} 74. Kg4 {[%clk 0:00:10]}  Rb7 {[%clk 0:00:06]} 75. Ra4 {[%clk 0:00:11]}  Rc7 {[%clk 0:00:06]} 76. Ra5 {[%clk 0:00:11]}  Rb7 {[%clk 0:00:07]} 77. Kf5 {[%clk 0:00:11]}  Rf7+ {[%clk 0:00:07]} 78. Kg4 {[%clk 0:00:11]}  Rb7 {[%clk 0:00:07]} 79. Rf5 {[%clk 0:00:11]}  Rb4+ {[%clk 0:00:07]} 80. Rf4 {[%clk 0:00:12]}  Rb7 {[%clk 0:00:08]} 81. h6+ {[%clk 0:00:12]}  Kh7 {[%clk 0:00:03]} 82. Kh5 {[%clk 0:00:12]}  Rb5 {[%clk 0:00:02]} 83. Rf7+ {[%clk 0:00:12]}  Kg8 {[%clk 0:00:02]} 84. Ra7 {[%clk 0:00:13]}  Kh8 {[%clk 0:00:02]} 85. Rf7 {[%clk 0:00:10]}  Kg8 {[%clk 0:00:02]} 86. Rf6 {[%clk 0:00:07]}  Kh7 {[%clk 0:00:02]} 87. Re6 {[%clk 0:00:06]}  Kg8 {[%clk 0:00:03]} 88. Kg6 {[%clk 0:00:06]}  Rb8 {[%clk 0:00:02]} 89. h7+ {[%clk 0:00:04]}  Kh8 {[%clk 0:00:02]} 90. Kh6 {[%clk 0:00:05]}  Rb6 {[%clk 0:00:02]} 91. Rxb6 {[%clk 0:00:01]} 1/2-1/2


[Site "https://www.chess.com"]

[Event "Titled Tuesday Blitz April 05 Late 2022"]
[White "Hess, Robert"]
[Black "Aldokhin, Ivan"]
[WhiteFideId "2022036"]
[BlackFideId "24115720"]
[WhiteElo "2557"]
[BlackElo "2231"]
[Result "1-0"]
[Round "09"]
[TimeControl "180+1"]
[Date "2022.04.05"]
[WhiteClock "0:00:12"]
[BlackClock "0:00:02"]

1. b3 {[%clk 0:03:00]}  d5 {[%clk 0:02:59]} 2. Bb2 {[%clk 0:03:01]}  Bg4 {[%clk 0:02:56]} 3. h3 {[%clk 0:03:01]}  Bh5 {[%clk 0:02:56]} 4. d3 {[%clk 0:03:01]}  e6 {[%clk 0:02:56]} 5. Nd2 {[%clk 0:03:02]}  Nf6 {[%clk 0:02:56]} 6. g4 {[%clk 0:03:02]}  Bg6 {[%clk 0:02:55]} 7. Ngf3 {[%clk 0:03:03]}  Nc6 {[%clk 0:02:53]} 8. Nh4 {[%clk 0:03:02]}  Bd6 {[%clk 0:02:46]} 9. e3 {[%clk 0:03:02]}  Qe7 {[%clk 0:02:45]} 10. a3 {[%clk 0:03:02]}  O-O-O {[%clk 0:02:35]} 11. b4 {[%clk 0:02:56]}  h5 {[%clk 0:02:09]} 12. g5 {[%clk 0:02:46]}  Nh7 {[%clk 0:02:05]} 13. Nxg6 {[%clk 0:02:47]}  fxg6 {[%clk 0:02:06]} 14. h4 {[%clk 0:02:47]}  Rhf8 {[%clk 0:01:45]} 15. Qe2 {[%clk 0:02:47]}  Rf7 {[%clk 0:01:38]} 16. Bh3 {[%clk 0:02:42]}  a6 {[%clk 0:01:31]} 17. O-O-O {[%clk 0:02:31]}  Kb8 {[%clk 0:01:27]} 18. f4 {[%clk 0:02:27]}  e5 {[%clk 0:01:07]} 19. f5 {[%clk 0:02:24]}  Nf8 {[%clk 0:00:59]} 20. fxg6 {[%clk 0:02:25]}  Nxg6 {[%clk 0:01:00]} 21. Qxh5 {[%clk 0:02:25]}  Nf8 {[%clk 0:00:56]} 22. Rdf1 {[%clk 0:02:19]}  g6 {[%clk 0:00:53]} 23. Rxf7 {[%clk 0:02:10]}  Qxf7 {[%clk 0:00:53]} 24. Qf3 {[%clk 0:02:11]}  Qg8 {[%clk 0:00:48]} 25. Rf1 {[%clk 0:02:03]}  d4 {[%clk 0:00:46]} 26. Ne4 {[%clk 0:01:55]}  dxe3 {[%clk 0:00:42]} 27. Nxd6 {[%clk 0:01:51]}  cxd6 {[%clk 0:00:40]} 28. Qxe3 {[%clk 0:01:51]}  Ne6 {[%clk 0:00:33]} 29. Bxe6 {[%clk 0:01:32]}  Qxe6 {[%clk 0:00:32]} 30. Rf6 {[%clk 0:01:29]}  Qg4 {[%clk 0:00:32]} 31. Qf2 {[%clk 0:01:20]}  Ne7 {[%clk 0:00:22]} 32. Qb6 {[%clk 0:00:52]}  Nc6 {[%clk 0:00:15]} 33. Bxe5 {[%clk 0:00:23]}  dxe5 {[%clk 0:00:04]} 34. Rxc6 {[%clk 0:00:23]}  Rh8 {[%clk 0:00:03]} 35. Qc7+ {[%clk 0:00:18]}  Ka8 {[%clk 0:00:02]} 36. Qxe5 {[%clk 0:00:12]} 1-0


[Site "https://www.chess.com"]

[Event "Titled Tuesday Blitz April 05 Late 2022"]
[White "Hnydiuk, Aleksander"]
[Black "Nasuta, Grzegorz"]
[WhiteFideId "1109057"]
[BlackFideId "1141686"]
[WhiteElo "2374"]
[BlackElo "2396"]
[Result "0-1"]
[Round "09"]
[TimeControl "180+1"]
[Date "2022.04.05"]
[WhiteClock "0:00:40"]
[BlackClock "0:01:21"]

1. Nf3 {[%clk 0:03:00]}  b6 {[%clk 0:02:37]} 2. e4 {[%clk 0:02:59]}  Bb7 {[%clk 0:02:37]} 3. Nc3 {[%clk 0:02:59]}  g6 {[%clk 0:02:37]} 4. d4 {[%clk 0:02:58]}  Bg7 {[%clk 0:02:38]} 5. Bd3 {[%clk 0:02:54]}  e6 {[%clk 0:02:38]} 6. O-O {[%clk 0:02:53]}  d6 {[%clk 0:02:39]} 7. Qe2 {[%clk 0:02:46]}  Ne7 {[%clk 0:02:38]} 8. a4 {[%clk 0:02:43]}  a6 {[%clk 0:02:38]} 9. Re1 {[%clk 0:02:29]}  Nd7 {[%clk 0:02:38]} 10. h3 {[%clk 0:02:09]}  h6 {[%clk 0:02:38]} 11. Bf4 {[%clk 0:01:55]}  O-O {[%clk 0:02:29]} 12. Qd2 {[%clk 0:01:51]}  Kh7 {[%clk 0:02:28]} 13. h4 {[%clk 0:01:32]}  e5 {[%clk 0:02:23]} 14. Be3 {[%clk 0:01:23]}  exd4 {[%clk 0:02:12]} 15. Bxd4 {[%clk 0:01:23]}  Ne5 {[%clk 0:02:12]} 16. Be2 {[%clk 0:01:07]}  Qc8 {[%clk 0:01:59]} 17. h5 {[%clk 0:01:04]}  Qe6 {[%clk 0:01:56]} 18. Nxe5 {[%clk 0:00:50]}  dxe5 {[%clk 0:01:39]} 19. hxg6+ {[%clk 0:00:51]}  Qxg6 {[%clk 0:01:31]} 20. Be3 {[%clk 0:00:52]}  Rad8 {[%clk 0:01:31]} 21. Bd3 {[%clk 0:00:47]}  f5 {[%clk 0:01:31]} 22. f3 {[%clk 0:00:43]}  f4 {[%clk 0:01:22]} 23. Bf2 {[%clk 0:00:43]}  Bf6 {[%clk 0:01:23]} 24. Qe2 {[%clk 0:00:40]}  Rg8 {[%clk 0:01:22]} 25. Bc4 {[%clk 0:00:40]}  Qxg2# {[%clk 0:01:21]} 0-1


[Site "https://www.chess.com"]

[Event "Titled Tuesday Blitz April 05 Late 2022"]
[White "Holt, Conrad"]
[Black "Javakhadze, Zurab"]
[WhiteFideId "2034387"]
[BlackFideId "13603647"]
[WhiteElo "2586"]
[BlackElo "2381"]
[Result "0-1"]
[Round "09"]
[TimeControl "180+1"]
[Date "2022.04.05"]
[WhiteClock "0:00:01"]
[BlackClock "0:00:02"]

1. d4 {[%clk 0:03:00]}  d5 {[%clk 0:02:57]} 2. c4 {[%clk 0:03:00]}  e6 {[%clk 0:02:57]} 3. Nc3 {[%clk 0:03:00]}  Be7 {[%clk 0:02:52]} 4. cxd5 {[%clk 0:03:00]}  exd5 {[%clk 0:02:52]} 5. Bf4 {[%clk 0:03:01]}  c6 {[%clk 0:02:49]} 6. e3 {[%clk 0:02:56]}  Bf5 {[%clk 0:02:45]} 7. Bd3 {[%clk 0:02:56]}  Bxd3 {[%clk 0:02:42]} 8. Qxd3 {[%clk 0:02:56]}  Nf6 {[%clk 0:02:42]} 9. Nf3 {[%clk 0:02:50]}  Nbd7 {[%clk 0:02:41]} 10. O-O {[%clk 0:02:48]}  O-O {[%clk 0:02:39]} 11. h3 {[%clk 0:02:46]}  Re8 {[%clk 0:02:38]} 12. Nd2 {[%clk 0:02:43]}  Nf8 {[%clk 0:02:34]} 13. Rad1 {[%clk 0:02:35]}  Ne6 {[%clk 0:02:31]} 14. Be5 {[%clk 0:02:34]}  Bd6 {[%clk 0:02:30]} 15. f4 {[%clk 0:02:30]}  Bc7 {[%clk 0:02:15]} 16. f5 {[%clk 0:02:16]}  Nf8 {[%clk 0:02:13]} 17. Bxf6 {[%clk 0:02:11]}  Qxf6 {[%clk 0:02:12]} 18. e4 {[%clk 0:02:11]}  dxe4 {[%clk 0:02:05]} 19. Ndxe4 {[%clk 0:02:09]}  Qh4 {[%clk 0:02:02]} 20. d5 {[%clk 0:02:06]}  Rad8 {[%clk 0:01:39]} 21. d6 {[%clk 0:02:02]}  Bb6+ {[%clk 0:01:33]} 22. Kh2 {[%clk 0:02:02]}  Nd7 {[%clk 0:01:29]} 23. f6 {[%clk 0:01:56]}  g6 {[%clk 0:01:24]} 24. g4 {[%clk 0:01:36]}  Re6 {[%clk 0:01:18]} 25. b4 {[%clk 0:01:19]}  Rde8 {[%clk 0:01:17]} 26. Qf3 {[%clk 0:01:12]}  a5 {[%clk 0:01:02]} 27. a3 {[%clk 0:01:07]}  axb4 {[%clk 0:00:56]} 28. axb4 {[%clk 0:01:07]}  Re5 {[%clk 0:00:55]} 29. Qf4 {[%clk 0:00:53]}  R5e6 {[%clk 0:00:49]} 30. g5 {[%clk 0:00:48]}  Qxf4+ {[%clk 0:00:27]} 31. Rxf4 {[%clk 0:00:48]}  Ra8 {[%clk 0:00:26]} 32. h4 {[%clk 0:00:42]}  Ra3 {[%clk 0:00:17]} 33. Rb1 {[%clk 0:00:21]}  Bd4 {[%clk 0:00:13]} 34. Rc1 {[%clk 0:00:04]}  Be5 {[%clk 0:00:12]} 35. Kg3 {[%clk 0:00:05]}  Bxf4+ {[%clk 0:00:09]} 36. Kxf4 {[%clk 0:00:06]}  Kf8 {[%clk 0:00:07]} 37. Nc5 {[%clk 0:00:06]}  Nxc5 {[%clk 0:00:05]} 38. bxc5 {[%clk 0:00:06]}  Ke8 {[%clk 0:00:06]} 39. Ne4 {[%clk 0:00:05]}  Ra4 {[%clk 0:00:06]} 40. Re1 {[%clk 0:00:05]}  Kd7 {[%clk 0:00:06]} 41. Kf3 {[%clk 0:00:05]}  Ra3+ {[%clk 0:00:06]} 42. Kf4 {[%clk 0:00:04]}  Ra4 {[%clk 0:00:06]} 43. Kf3 {[%clk 0:00:04]}  Re5 {[%clk 0:00:07]} 44. Re2 {[%clk 0:00:03]}  Rc4 {[%clk 0:00:06]} 45. Kf4 {[%clk 0:00:03]}  Rf5+ {[%clk 0:00:06]} 46. Ke3 {[%clk 0:00:03]}  Re5 {[%clk 0:00:05]} 47. Kd3 {[%clk 0:00:03]}  Ra4 {[%clk 0:00:04]} 48. Re1 {[%clk 0:00:03]}  Ra3+ {[%clk 0:00:03]} 49. Kd4 {[%clk 0:00:03]}  Rd5+ {[%clk 0:00:03]} 50. Kc4 {[%clk 0:00:04]}  Ra4+ {[%clk 0:00:04]} 51. Kb3 {[%clk 0:00:04]}  Rad4 {[%clk 0:00:03]} 52. Nc3 {[%clk 0:00:04]}  Rxc5 {[%clk 0:00:02]} 53. Re7+ {[%clk 0:00:04]}  Kxd6 {[%clk 0:00:03]} 54. Rxf7 {[%clk 0:00:05]}  Rd3 {[%clk 0:00:03]} 55. Rxh7 {[%clk 0:00:04]}  Rdxc3+ {[%clk 0:00:03]} 56. Kb2 {[%clk 0:00:04]}  Rc2+ {[%clk 0:00:03]} 57. Kb3 {[%clk 0:00:04]}  R5c3+ {[%clk 0:00:03]} 58. Kb4 {[%clk 0:00:04]}  b6 {[%clk 0:00:03]} 59. Rh8 {[%clk 0:00:02]}  Rc4+ {[%clk 0:00:02]} 60. Kb3 {[%clk 0:00:02]}  R4c3+ {[%clk 0:00:03]} 61. Kb4 {[%clk 0:00:02]}  Rf3 {[%clk 0:00:03]} 62. Re8 {[%clk 0:00:02]}  Rb2+ {[%clk 0:00:02]} 63. Kc4 {[%clk 0:00:02]}  Rh2 {[%clk 0:00:02]} 64. Rd8+ {[%clk 0:00:01]}  Kc7 {[%clk 0:00:02]} 65. Re8 {[%clk 0:00:01]}  Rxh4+ {[%clk 0:00:02]} 0-1


[Site "https://www.chess.com"]